lending/lending_fUSD_20240710
["ID","MTS","AMOUNT","RATE_DAILY","PERIOD"]
[331590308,1720569623753,274.74068471,0.00011199,2]
[331590309,1720569679033,305.75501762,0.00011199,2]
[331590310,1720569825585,1380.40369576,0.00011199,2]
[331590311,1720569896051,151.071007,0.00025,72]
[331590312,1720569899748,151.071007,0.00025,73]
[331590313,1720569903031,151.071007,0.00025,74]
[331590314,1720569908030,151.071007,0.00025,60]
[331590315,1720569911581,151.071007,0.00025,64]
[331590316,1720569914365,151.071007,0.00025,65]
[331590317,1720569918291,151.071007,0.00025,66]
[331590318,1720569922166,151.071007,0.00025,67]
[331590320,1720569933466,151.071007,0.00025,71]
[331590321,1720569934184,378.31102686,0.00011199,2]
[331590322,1720569936594,151.071007,0.00025,72]
[331590323,1720569937629,258.49555503,0.00011199,2]
[331590324,1720569969909,264.77897746,0.00011199,2]
[331590325,1720570079616,438.62,0.00010836,2]
[331590328,1720570232296,-631.61894838,0.00012201,2]
[331590329,1720570233031,-487.65931293,0.00012201,2]
[331590330,1720570233047,-862.55683869,0.00012201,2]
[331590331,1720570233061,-208.76746468,0.00012214,2]
[331590332,1720570233079,-829.59060237,0.00012214,2]
[331590333,1720570233092,-418.69287802,0.00012214,2]
[331590334,1720570233102,-305.75501762,0.00012273,2]
[331590335,1720570233111,-186.68,0.00012583,2]
[331590336,1720570233121,-158.68,0.00012663,2]
[331590337,1720570233131,-476.45,0.00012693,2]
[331590338,1720570233140,-1000.0,0.00012702,2]
[331590339,1720570233150,-2722.82,0.0001272,2]
[331590340,1720570233160,-250.0,0.0001272,2]
[331590341,1720570233169,-170.26,0.00012728,2]
[331590342,1720570233179,-500.0,0.00012888,2]
[331590343,1720570233189,-1687.86,0.00012888,2]
[331590344,1720570233201,-499.99,0.00012888,2]
[331590345,1720570233210,-871.41023,0.0001289,2]
[331590346,1720570233219,-355.12,0.000129,2]
[331590347,1720570233228,-747.0,0.0001291,2]
[331590348,1720570233238,-169.01,0.00012933,2]
[331590349,1720570233247,-355.12,0.00013,2]
[331590350,1720570233256,-871.41023,0.0001302,2]
[331590351,1720570233266,-438.62,0.000131,2]
[331590352,1720570233276,-355.12,0.000131,2]
[331590353,1720570233286,-5000.0,0.00013128,2]
[331590354,1720570233296,-263.87399414,0.00013128,2]
[331590355,1720570233307,-2204.42431821,0.00013128,2]
[331590356,1720570233317,-305.92019464,0.00013134,2]
[331590357,1720570233327,-413.27406791,0.00013134,2]
[331590358,1720570233337,-150.0,0.0001314,2]
[331590359,1720570233348,-739.05669894,0.0001318,2]
[331590360,1720570233361,-132.35353106,0.0001318,2]
[331590361,1720570233370,-151.07062,0.00013315,2]
[331590362,1720570233379,-1070.095096,0.00013315,2]
[331590363,1720570233388,-158.68,0.00013322,2]
[331590364,1720570233397,-161.59307,0.00013324,2]
[331590365,1720570233407,-170.979051,0.00013324,2]
[331590366,1720570233416,-164.19694,0.00013324,2]
[331590367,1720570233426,-871.41023,0.0001334,2]
[331590368,1720570233435,-424.66,0.0001337,2]
[331590369,1720570233444,-1271.56510506,0.00013472,2]
[331590370,1720570233456,-1070.095096,0.00013481,2]
[331590371,1720570233465,-871.41023,0.0001349,2]
[331590372,1720570233474,-856.07293164,0.00013574,2]
[331590373,1720570233483,-1070.095096,0.00013647,2]
[331590374,1720570233493,-871.41023,0.0001365,2]
[331590375,1720570233502,-166.66,0.00013726,3]
[331590376,1720570233511,-150.0,0.00013727,2]
[331590377,1720570233521,-150.0,0.00013729,2]
[331590378,1720570233530,-300.0,0.00013737,2]
[331590379,1720570233540,-253.45811787,0.00013739,2]
[331590380,1720570233549,-150.0,0.0001374,2]
[331590381,1720570233559,-150.0,0.00013741,2]
[331590382,1720570233568,-150.0,0.00013753,2]
[331590383,1720570233577,-150.0,0.00013767,2]
[331590384,1720570233588,-150.0,0.00013774,2]
[331590385,1720570233598,-3679.45111637,0.00013782,6]
[331590386,1720570238189,-2588.49553748,0.00013782,6]
[331590387,1720570238202,-11371.02566343,0.00013782,6]
[331590388,1720570238231,-12338.90693721,0.00013782,6]
[331590389,1720570238260,-588.94521601,0.00013782,6]
[331590390,1720570238418,-257.4133728,0.00013782,6]
[331590393,1720570238431,-1119.95985758,0.00013782,6]
[331590395,1720570238444,-9551.3770682,0.00013782,6]
[331590397,1720570238457,-29419.7076725,0.00013782,6]
[331590485,1720570242236,-152.6219,0.00012101,2]
[331590486,1720570242246,-429.4281,0.00013782,6]
[331590487,1720570242291,-1326.15348758,0.00013782,6]
[331590488,1720570242337,-4368.307944,0.00013782,6]
[331590489,1720570242349,-1012.717862,0.00013782,6]
[331590490,1720570242360,-1548.81483184,0.00013782,6]
[331590491,1720570242389,-281.7855,0.00013782,6]
[331590492,1720570242400,-789871.789833,0.00013782,6]
[331590493,1720570242409,-274751.6,0.00013782,6]
[331590494,1720570242418,-12031.64,0.00013782,6]
[331590495,1720570242428,-42438.49,0.00013782,6]
[331590496,1720570242437,-36257.24,0.00013782,6]
[331590497,1720570242447,-34146.39,0.00013782,6]
[331590498,1720570242458,-11225.97,0.00013782,6]
[331590499,1720570242467,-128437.69,0.00013782,6]
[331590500,1720570242475,-33497.5,0.00013782,6]
[331590501,1720570242485,-24542.31,0.00013782,6]
[331590502,1720570242494,-56884.42,0.00013782,6]
[331590503,1720570242504,-5656.43,0.00013782,6]
[331590504,1720570242513,-1070.095096,0.00013814,2]
[331590505,1720570242523,-1500.0,0.00013815,2]
[331590506,1720570242532,-150.0,0.00013827,2]
[331590507,1720570242542,-150.0,0.00013827,2]
[331590508,1720570242551,-150.0,0.00013832,2]
[331590509,1720570242560,-1500.0,0.00013836,2]
[331590510,1720570242570,-151.0,0.00013836,2]
[331590511,1720570242579,-151.0,0.00013836,2]
[331590512,1720570242588,-151.0,0.00013836,2]
[331590513,1720570242599,-2118.961104,0.00013836,2]
[331590514,1720570242608,-2118.961104,0.00013836,2]
[331590515,1720570242618,-151.0,0.00013836,2]
[331590516,1720570242628,-151.0,0.00013836,2]
[331590517,1720570242638,-300.0,0.00013844,2]
[331590518,1720570242648,-150.0,0.00013852,2]
[331590519,1720570242658,-150.0,0.0001387,2]
[331590520,1720570242668,-150.0,0.00013873,2]
[331590521,1720570242678,-151.0,0.00013873,2]
[331590522,1720570242687,-153.403396,0.00013873,2]
[331590523,1720570242696,-151.0,0.00013873,2]
[331590524,1720570242708,-7500.0,0.00013874,2]
[331590525,1720570242719,-420.32923226,0.00013874,2]
[331590526,1720570242730,-363.7067,0.00013882,2]
[331590527,1720570242740,-150.0,0.00013883,2]
[331590528,1720570242750,-150.0,0.00013888,2]
[331590529,1720570242760,-314.76,0.00013888,3]
[331590530,1720570242771,-320.87491302,0.00013895,2]
[331590531,1720570242781,-1000.0,0.00013895,2]
[331590532,1720570242792,-1000.0,0.00013896,2]
[331590533,1720570242802,-876.1908,0.00013897,2]
[331590534,1720570242812,-243.6939747,0.00013897,2]
[331590535,1720570242822,-281.57211,0.00013897,2]
[331590536,1720570242831,-778.955368,0.00013897,2]
[331590537,1720570242841,-281.57211,0.00013897,2]
[331590538,1720570242850,-778.955368,0.00013897,2]
[331590539,1720570242860,-151.0,0.00013897,2]
[331590540,1720570242870,-165.773575,0.00013897,2]
[331590541,1720570242879,-165.773575,0.00013897,2]
[331590542,1720570242889,-584.736258,0.00013897,2]
[331590543,1720570242898,-584.736258,0.00013897,2]
[331590544,1720570242908,-151.0,0.00013898,2]
[331590545,1720570242918,-151.0,0.00013898,2]
[331590546,1720570242927,-192.256262,0.00013898,2]
[331590548,1720570242938,-151.0,0.00013898,2]
[331590549,1720570242948,-192.256262,0.00013898,2]
[331590550,1720570242959,-154.615941,0.00013898,2]
[331590551,1720570242968,-154.615941,0.00013898,2]
[331590552,1720570242979,-151.0,0.00013898,2]
[331590553,1720570242989,-233.642082,0.00013898,2]
[331590555,1720570242999,-151.0,0.00013898,2]
[331590557,1720570243009,-151.27512,0.00013898,2]
[331590559,1720570243019,-151.0,0.00013898,2]
[331590560,1720570243029,-151.0,0.00013898,2]
[331590562,1720570243039,-486.738154,0.00013898,2]
[331590565,1720570243050,-486.738154,0.00013898,2]
[331590568,1720570243060,-489.428762,0.00013898,2]
[331590570,1720570243070,-489.428762,0.00013898,2]
[331590572,1720570243082,-151.0,0.00013898,2]
[331590574,1720570243093,-151.0,0.00013898,2]
[331590575,1720570243103,-323.179915,0.00013898,2]
[331590576,1720570243112,-151.0,0.00013898,2]
[331590577,1720570243121,-323.179915,0.00013898,2]
[331590578,1720570243131,-151.0,0.00013898,2]
[331590579,1720570243141,-151.0,0.00013898,2]
[331590580,1720570243151,-151.0,0.00013898,2]
[331590581,1720570243160,-250.331018,0.00013898,2]
[331590582,1720570243169,-151.0,0.00013898,2]
[331590583,1720570243179,-151.0,0.00013898,2]
[331590585,1720570243188,-151.0,0.00013898,2]
[331590587,1720570243197,-151.0,0.00013898,2]
[331590588,1720570243208,-151.0,0.00013898,2]
[331590589,1720570243218,-151.0,0.00013898,2]
[331590590,1720570243228,-151.0,0.00013898,2]
[331590591,1720570243238,-485.053889,0.00013898,2]
[331590592,1720570243247,-485.053889,0.00013898,2]
[331590593,1720570243257,-485.053889,0.00013898,2]
[331590594,1720570243267,-485.053889,0.00013898,2]
[331590595,1720570243276,-151.0,0.00013898,2]
[331590596,1720570243286,-151.0,0.00013898,2]
[331590597,1720570243295,-151.0,0.00013898,2]
[331590598,1720570243305,-151.0,0.00013898,2]
[331590599,1720570243315,-151.0,0.00013898,2]
[331590600,1720570243324,-151.0,0.00013898,2]
[331590601,1720570243334,-151.0,0.00013898,2]
[331590602,1720570243344,-151.0,0.00013898,2]
[331590603,1720570243355,-151.0,0.00013898,2]
[331590604,1720570243364,-151.0,0.00013898,2]
[331590605,1720570243374,-151.0,0.00013898,2]
[331590606,1720570243383,-151.0,0.00013898,2]
[331590607,1720570243393,-151.0,0.00013898,2]
[331590608,1720570243403,-272.936275,0.00013898,2]
[331590609,1720570243412,-151.0,0.00013898,2]
[331590610,1720570243421,-151.0,0.00013898,2]
[331590611,1720570243432,-151.0,0.00013898,2]
[331590612,1720570243442,-151.0,0.00013898,2]
[331590613,1720570243452,-151.0,0.00013898,2]
[331590614,1720570243462,-258.453851,0.00013898,2]
[331590615,1720570243472,-151.0,0.00013898,2]
[331590616,1720570243482,-163.791844,0.00013898,2]
[331590617,1720570243491,-163.791844,0.00013898,2]
[331590618,1720570243501,-151.0,0.00013898,2]
[331590619,1720570243511,-163.791844,0.00013898,2]
[331590620,1720570243520,-151.0,0.00013898,2]
[331590621,1720570243530,-151.0,0.00013898,2]
[331590622,1720570243539,-163.791844,0.00013898,2]
[331590623,1720570243549,-198.933322,0.00013898,2]
[331590624,1720570243559,-163.791844,0.00013898,2]
[331590625,1720570243568,-163.791844,0.00013898,2]
[331590626,1720570243578,-163.791844,0.00013898,2]
[331590627,1720570243587,-163.791844,0.00013898,2]
[331590628,1720570243596,-163.791844,0.00013898,2]
[331590629,1720570243605,-163.791844,0.00013898,2]
[331590630,1720570243614,-151.0,0.00013898,2]
[331590631,1720570243624,-151.0,0.00013898,2]
[331590632,1720570243633,-151.0,0.00013898,2]
[331590633,1720570243643,-151.0,0.00013898,2]
[331590634,1720570243652,-151.0,0.00013898,2]
[331590635,1720570243661,-151.0,0.00013898,2]
[331590636,1720570243670,-151.0,0.00013898,2]
[331590637,1720570243680,-151.0,0.00013898,2]
[331590638,1720570243689,-151.0,0.00013898,2]
[331590639,1720570243698,-151.0,0.00013898,2]
[331590640,1720570243710,-1134.763467,0.00013898,2]
[331590641,1720570243719,-1134.763467,0.00013898,2]
[331590642,1720570243728,-1134.763467,0.00013898,2]
[331590643,1720570243740,-1134.763467,0.00013898,2]
[331590644,1720570243750,-1134.763467,0.00013898,2]
[331590645,1720570243759,-1134.763467,0.00013898,2]
[331590646,1720570243769,-1134.763467,0.00013898,2]
[331590647,1720570243779,-1134.763467,0.00013898,2]
[331590648,1720570243789,-1134.763467,0.00013898,2]
[331590649,1720570243798,-1134.763467,0.00013898,2]
[331590650,1720570243808,-151.318243,0.00013898,2]
[331590651,1720570243818,-151.0,0.00013898,2]
[331590652,1720570243827,-151.261082,0.00013898,2]
[331590653,1720570243837,-151.0,0.00013898,2]
[331590654,1720570243846,-151.0,0.00013898,2]
[331590655,1720570243856,-151.0,0.00013898,2]
[331590656,1720570243866,-151.0,0.00013898,2]
[331590657,1720570243876,-151.0,0.00013898,2]
[331590658,1720570243885,-151.0,0.00013898,2]
[331590659,1720570243895,-151.0,0.00013898,2]
[331590660,1720570243905,-151.0,0.00013898,2]
[331590661,1720570243915,-151.0,0.00013898,2]
[331590662,1720570243924,-151.0,0.00013898,2]
[331590663,1720570243934,-151.0,0.00013898,2]
[331590664,1720570243944,-151.0,0.00013898,2]
[331590665,1720570243953,-151.0,0.00013898,2]
[331590666,1720570243964,-151.0,0.00013898,2]
[331590667,1720570243973,-280.325849,0.00013898,2]
[331590668,1720570243983,-151.0,0.00013898,2]
[331590669,1720570243993,-151.0,0.00013898,2]
[331590670,1720570244003,-151.0,0.00013898,2]
[331590671,1720570244013,-151.0,0.00013898,2]
[331590672,1720570244023,-151.0,0.00013898,2]
[331590673,1720570244033,-619.615036,0.00013898,2]
[331590674,1720570244042,-619.615036,0.00013898,2]
[331590675,1720570244052,-619.615036,0.00013898,2]
[331590676,1720570244063,-619.615036,0.00013898,2]
[331590677,1720570244073,-619.615036,0.00013898,2]
[331590678,1720570244084,-619.615036,0.00013898,2]
[331590679,1720570244095,-619.615036,0.00013898,2]
[331590680,1720570244105,-619.615036,0.00013898,2]
[331590681,1720570244219,-619.615036,0.00013898,2]
[331590682,1720570244229,-151.0,0.00013898,2]
[331590683,1720570244239,-619.615036,0.00013898,2]
[331590684,1720570244249,-151.0,0.00013898,2]
[331590685,1720570244259,-151.0,0.00013898,2]
[331590686,1720570244268,-151.0,0.00013898,2]
[331590687,1720570244278,-151.0,0.00013898,2]
[331590688,1720570244288,-151.0,0.00013898,2]
[331590689,1720570244298,-151.0,0.00013898,2]
[331590690,1720570244307,-151.0,0.00013898,2]
[331590691,1720570244317,-151.0,0.00013898,2]
[331590692,1720570244327,-747.592386,0.00013898,2]
[331590693,1720570244338,-274.405592,0.00013898,2]
[331590694,1720570244347,-747.592386,0.00013898,2]
[331590695,1720570244357,-747.592386,0.00013898,2]
[331590696,1720570244367,-747.592386,0.00013898,2]
[331590697,1720570244376,-747.592386,0.00013898,2]
[331590698,1720570244386,-747.592386,0.00013898,2]
[331590699,1720570244395,-747.592386,0.00013898,2]
[331590700,1720570244405,-747.592386,0.00013898,2]
[331590701,1720570244414,-747.592386,0.00013898,2]
[331590702,1720570244425,-747.592386,0.00013898,2]
[331590703,1720570244435,-7442.010839,0.00013898,2]
[331590704,1720570244445,-7442.010839,0.00013898,2]
[331590705,1720570244456,-7442.010839,0.00013898,2]
[331590706,1720570244465,-7442.010839,0.00013898,2]
[331590707,1720570244475,-7442.010839,0.00013898,2]
[331590708,1720570244486,-151.0,0.00013898,2]
[331590709,1720570244495,-151.0,0.00013898,2]
[331590710,1720570244505,-7442.010839,0.00013898,2]
[331590711,1720570244515,-151.0,0.00013898,2]
[331590712,1720570244525,-7442.010839,0.00013898,2]
[331590713,1720570244534,-151.0,0.00013898,2]
[331590714,1720570244544,-151.0,0.00013898,2]
[331590715,1720570244553,-7442.010839,0.00013898,2]
[331590716,1720570244563,-7442.010839,0.00013898,2]
[331590717,1720570244572,-151.0,0.00013898,2]
[331590718,1720570244582,-151.0,0.00013898,2]
[331590719,1720570244591,-151.0,0.00013898,2]
[331590720,1720570244601,-151.0,0.00013898,2]
[331590721,1720570244610,-7442.010839,0.00013898,2]
[331590722,1720570244620,-7442.010839,0.00013898,2]
[331590723,1720570244629,-7442.010839,0.00013898,2]
[331590724,1720570244639,-151.0,0.00013898,2]
[331590725,1720570244649,-7442.010839,0.00013898,2]
[331590726,1720570244658,-7442.010839,0.00013898,2]
[331590727,1720570244668,-332.953006,0.00013898,2]
[331590728,1720570244678,-332.953006,0.00013898,2]
[331590729,1720570244687,-297.603592,0.00013898,2]
[331590730,1720570244696,-332.953006,0.00013898,2]
[331590731,1720570244707,-297.603592,0.00013898,2]
[331590732,1720570244716,-332.953006,0.00013898,2]
[331590733,1720570244726,-297.603592,0.00013898,2]
[331590734,1720570244735,-297.603592,0.00013898,2]
[331590735,1720570244744,-332.953006,0.00013898,2]
[331590736,1720570244754,-297.603592,0.00013898,2]
[331590737,1720570244763,-332.953006,0.00013898,2]
[331590738,1720570244773,-297.603592,0.00013898,2]
[331590739,1720570244782,-332.953006,0.00013898,2]
[331590740,1720570244792,-297.603592,0.00013898,2]
[331590741,1720570244801,-332.953006,0.00013898,2]
[331590742,1720570244811,-297.603592,0.00013898,2]
[331590743,1720570244820,-332.953006,0.00013898,2]
[331590744,1720570244830,-332.953006,0.00013898,2]
[331590745,1720570244839,-332.953006,0.00013898,2]
[331590746,1720570244850,-297.603592,0.00013898,2]
[331590747,1720570244859,-297.603592,0.00013898,2]
[331590748,1720570244869,-332.953006,0.00013898,2]
[331590749,1720570244879,-297.603592,0.00013898,2]
[331590750,1720570244889,-332.953006,0.00013898,2]
[331590751,1720570244899,-332.953006,0.00013898,2]
[331590752,1720570244909,-297.603592,0.00013898,2]
[331590753,1720570244918,-297.603592,0.00013898,2]
[331590754,1720570244928,-297.603592,0.00013898,2]
[331590755,1720570244937,-151.0,0.00013898,2]
[331590756,1720570244947,-151.0,0.00013898,2]
[331590757,1720570244957,-151.0,0.00013898,2]
[331590758,1720570244966,-151.0,0.00013898,2]
[331590759,1720570244975,-151.0,0.00013898,2]
[331590760,1720570244985,-151.0,0.00013898,2]
[331590761,1720570244995,-281.57211,0.00013898,2]
[331590762,1720570245004,-151.0,0.00013898,2]
[331590763,1720570245014,-281.57211,0.00013898,2]
[331590764,1720570245024,-281.57211,0.00013898,2]
[331590765,1720570245034,-281.57211,0.00013898,2]
[331590766,1720570245043,-281.57211,0.00013898,2]
[331590767,1720570245053,-281.57211,0.00013898,2]
[331590768,1720570245064,-778.955368,0.00013898,2]
[331590769,1720570245075,-778.955368,0.00013898,2]
[331590770,1720570245086,-778.955368,0.00013898,2]
[331590771,1720570245095,-778.955368,0.00013898,2]
[331590772,1720570245106,-281.57211,0.00013898,2]
[331590773,1720570245116,-778.955368,0.00013898,2]
[331590774,1720570245125,-281.57211,0.00013898,2]
[331590775,1720570245135,-778.955368,0.00013898,2]
[331590776,1720570245144,-281.57211,0.00013898,2]
[331590777,1720570245154,-151.0,0.00013898,2]
[331590778,1720570245164,-281.57211,0.00013898,2]
[331590779,1720570245174,-151.0,0.00013898,2]
[331590780,1720570245183,-151.0,0.00013898,2]
[331590781,1720570245192,-151.0,0.00013898,2]
[331590782,1720570245202,-778.955368,0.00013898,2]
[331590783,1720570245214,-151.0,0.00013898,2]
[331590784,1720570245223,-281.57211,0.00013898,2]
[331590785,1720570245232,-778.955368,0.00013898,2]
[331590786,1720570245241,-151.0,0.00013898,2]
[331590787,1720570245251,-778.955368,0.00013898,2]
[331590788,1720570245260,-151.0,0.00013898,2]
[331590789,1720570245269,-281.57211,0.00013898,2]
[331590790,1720570245279,-778.955368,0.00013898,2]
[331590791,1720570245289,-778.955368,0.00013898,2]
[331590792,1720570245298,-778.955368,0.00013898,2]
[331590793,1720570245307,-151.0,0.00013898,2]
[331590794,1720570245317,-151.0,0.00013898,2]
[331590795,1720570245327,-160.757523,0.00013898,2]
[331590796,1720570245337,-151.0,0.00013898,2]
[331590797,1720570245347,-151.0,0.00013898,2]
[331590798,1720570245356,-151.0,0.00013898,2]
[331590799,1720570245366,-151.0,0.00013898,2]
[331590800,1720570245375,-151.0,0.00013898,2]
[331590801,1720570245385,-972.426871,0.00013898,2]
[331590802,1720570245394,-151.0,0.00013898,2]
[331590803,1720570245404,-972.426871,0.00013898,2]
[331590804,1720570245414,-972.426871,0.00013898,2]
[331590805,1720570245423,-972.426871,0.00013898,2]
[331590806,1720570245433,-972.426871,0.00013898,2]
[331590807,1720570245442,-972.426871,0.00013898,2]
[331590808,1720570245452,-151.0,0.00013898,2]
[331590809,1720570245464,-972.426871,0.00013898,2]
[331590810,1720570245473,-151.0,0.00013898,2]
[331590811,1720570245483,-972.426871,0.00013898,2]
[331590812,1720570245492,-151.0,0.00013898,2]
[331590813,1720570245502,-972.426871,0.00013898,2]
[331590814,1720570245511,-151.0,0.00013898,2]
[331590815,1720570245521,-972.426871,0.00013898,2]
[331590816,1720570245531,-151.0,0.00013898,2]
[331590817,1720570245540,-151.0,0.00013898,2]
[331590818,1720570245549,-165.773575,0.00013898,2]
[331590819,1720570245559,-165.773575,0.00013898,2]
[331590820,1720570245568,-165.773575,0.00013898,2]
[331590821,1720570245577,-165.773575,0.00013898,2]
[331590822,1720570245586,-165.773575,0.00013898,2]
[331590823,1720570245595,-165.773575,0.00013898,2]
[331590824,1720570245604,-165.773575,0.00013898,2]
[331590825,1720570245613,-165.773575,0.00013898,2]
[331590826,1720570245623,-165.773575,0.00013898,2]
[331590827,1720570245632,-584.736258,0.00013898,2]
[331590828,1720570245641,-584.736258,0.00013898,2]
[331590829,1720570245651,-165.773575,0.00013898,2]
[331590830,1720570245660,-584.736258,0.00013898,2]
[331590831,1720570245669,-584.736258,0.00013898,2]
[331590832,1720570245678,-165.773575,0.00013898,2]
[331590833,1720570245688,-584.736258,0.00013898,2]
[331590834,1720570245696,-165.773575,0.00013898,2]
[331590835,1720570245707,-584.736258,0.00013898,2]
[331590836,1720570245716,-584.736258,0.00013898,2]
[331590837,1720570245726,-584.736258,0.00013898,2]
[331590838,1720570245735,-584.736258,0.00013898,2]
[331590839,1720570245744,-584.736258,0.00013898,2]
[331590840,1720570245753,-584.736258,0.00013898,2]
[331590841,1720570245763,-584.736258,0.00013898,2]
[331590842,1720570245772,-151.0,0.00013898,2]
[331590843,1720570245781,-151.0,0.00013898,2]
[331590844,1720570245791,-151.0,0.00013898,2]
[331590845,1720570245799,-151.0,0.00013898,2]
[331590846,1720570245808,-151.0,0.00013898,2]
[331590847,1720570245818,-235.972091,0.00013898,2]
[331590848,1720570245827,-151.0,0.00013898,2]
[331590849,1720570245836,-151.0,0.00013898,2]
[331590850,1720570245844,-151.0,0.00013898,2]
[331590851,1720570245854,-151.0,0.00013898,2]
[331590852,1720570245863,-151.0,0.00013898,2]
[331590853,1720570245872,-151.0,0.00013898,2]
[331590854,1720570245882,-151.0,0.00013898,2]
[331590855,1720570245891,-151.0,0.00013898,2]
[331590856,1720570245900,-151.0,0.00013898,2]
[331590857,1720570245910,-151.0,0.00013898,2]
[331590858,1720570245919,-151.0,0.00013898,2]
[331590859,1720570245929,-151.0,0.00013898,2]
[331590860,1720570245939,-151.0,0.00013898,2]
[331590861,1720570245949,-151.0,0.00013898,2]
[331590862,1720570245959,-151.0,0.00013898,2]
[331590863,1720570245968,-151.0,0.00013898,2]
[331590864,1720570245977,-151.0,0.00013898,2]
[331590865,1720570245986,-151.0,0.00013898,2]
[331590866,1720570245995,-153.322509,0.00013898,2]
[331590867,1720570246004,-2118.961104,0.00013898,2]
[331590868,1720570246014,-2118.961104,0.00013898,2]
[331590869,1720570246024,-2118.961104,0.00013898,2]
[331590871,1720570246033,-2118.961104,0.00013898,2]
[331590873,1720570246043,-2118.961104,0.00013898,2]
[331590875,1720570246053,-2118.961104,0.00013898,2]
[331590876,1720570246063,-2118.961104,0.00013898,2]
[331590877,1720570246073,-2118.961104,0.00013898,2]
[331590878,1720570246083,-2118.961104,0.00013898,2]
[331590879,1720570246093,-2118.961104,0.00013898,2]
[331590880,1720570246102,-2118.961104,0.00013898,2]
[331590881,1720570246111,-2118.961104,0.00013898,2]
[331590882,1720570246120,-2118.961104,0.00013898,2]
[331590883,1720570246130,-2118.961104,0.00013898,2]
[331590884,1720570246139,-2118.961104,0.00013898,2]
[331590885,1720570246148,-2118.961104,0.00013898,2]
[331590886,1720570246157,-2118.961104,0.00013898,2]
[331590887,1720570246167,-2118.961094,0.00013898,2]
[331590889,1720570246176,-151.0,0.00013898,2]
[331590891,1720570246185,-151.0,0.00013898,2]
[331590892,1720570246194,-151.0,0.00013898,2]
[331590895,1720570246203,-151.0,0.00013898,2]
[331590897,1720570246214,-151.0,0.00013898,2]
[331590898,1720570246222,-151.0,0.00013898,2]
[331590899,1720570246231,-151.0,0.00013898,2]
[331590900,1720570246240,-151.0,0.00013898,2]
[331590901,1720570246249,-151.0,0.00013898,2]
[331590902,1720570246258,-151.0,0.00013898,2]
[331590903,1720570246267,-266.89,0.00013898,2]
[331590904,1720570246277,-151.0,0.00013898,2]
[331590905,1720570246286,-166.997772,0.00013898,2]
[331590906,1720570246294,-6700.2209,0.00013898,2]
[331590907,1720570246303,-188.32728344,0.00013899,2]
[331590908,1720570246312,-228.584,0.000139,2]
[331590909,1720570246322,-420.32923221,0.00013901,2]
[331590910,1720570246332,-150.0,0.00013912,2]
[331590911,1720570246341,-150.0,0.00013913,2]
[331590912,1720570246351,-300.0,0.00013918,2]
[331590913,1720570246360,-420.32923221,0.00013928,2]
[331590914,1720570246369,-150.0,0.00013939,2]
[331590915,1720570246379,-150.0,0.00013948,2]
[331590916,1720570246388,-151.33253,0.00013955,2]
[331590917,1720570246398,-151.33253,0.00013955,2]
[331590918,1720570246407,-151.0,0.00013955,2]
[331590919,1720570246417,-578.557397,0.00013955,2]
[331590920,1720570246426,-578.557397,0.00013955,2]
[331590921,1720570246435,-151.0,0.00013955,2]
[331590922,1720570246445,-151.0,0.00013955,2]
[331590923,1720570246454,-151.577924,0.00013955,2]